bitfinex/quotes_SOLUSD_20240808
["timestamp","ask_amount","ask_price","bid_price","bid_amount"]
[1723128850027,20.0,159.47,159.37,6.796]
[1723128850255,45.0,159.46,159.37,6.796]
[1723128850433,20.0,159.45,159.37,6.796]
[1723128850627,45.0,159.44,159.37,6.796]
[1723128851143,45.0,159.44,159.37,5.796]
[1723128851573,45.0,159.44,159.36,15.779]
[1723128851574,46.56846878,159.44,159.36,15.779]
[1723128851731,20.34,159.43,159.24,15.779]
[1723128852046,45.0,159.42,159.24,15.779]
[1723128852236,20.0,159.41,159.24,15.779]
[1723128852433,45.0,159.4,159.27,15.5323]
[1723128852643,45.0,159.42,159.27,15.5323]
[1723128853121,6.3612,159.54,159.28,20.0]
[1723128853323,6.3612,159.54,159.31,16.2874]
[1723128853544,6.3612,159.54,159.32,65.34]
[1723128853747,6.51042566,159.55,159.34,41.51]
[1723128853939,5.76630119,159.56,159.34,41.51]
[1723128853940,5.76630119,159.56,159.35,80.7775]
[1723128854137,5.76630119,159.56,159.38,6.2435]
[1723128854334,5.76630119,159.56,159.39,20.34]
[1723128855345,5.76630119,159.56,159.41,15.7103]
[1723128855648,5.76630119,159.56,159.42,20.34]
[1723128856634,5.76630119,159.56,159.43,6.4381]
[1723128856828,5.76630119,159.56,159.44,20.34]
[1723128858830,1.56696755,159.55,159.44,20.34]
[1723128859034,5.76630119,159.56,159.44,20.34]
[1723128859251,5.76630119,159.56,159.44,20.17]
[1723128859638,45.0,159.55,159.44,20.17]
[1723128860448,45.0,159.55,159.45,0.17]
[1723128860855,5.76630119,159.56,159.45,0.17]
[1723128862134,45.0,159.55,159.45,0.17]
[1723128863153,5.76630119,159.56,159.46,16.9959]
[1723128863454,16.9256,159.67,159.48,6.7335]
[1723128863841,1.566534,159.67,159.49,20.34]
[1723128864630,1.566534,159.67,159.5,15.9422]
[1723128864839,1.566534,159.67,159.51,20.34]
[1723128865344,6.2635,159.66,159.5,15.9422]
[1723128865539,1.5670662,159.65,159.5,15.9422]
[1723128865855,1.56707409,159.64,159.5,15.9422]
[1723128866357,0.34,159.63,159.5,15.9422]
[1723128866566,55.98212726,159.68,159.5,15.9422]
[1723128866739,54.4153183,159.68,159.51,0.17]
[1723128866941,1.56635601,159.7,159.51,0.17]
[1723128867243,1.56635601,159.7,159.51,20.17]
[1723128867554,1.56635601,159.7,159.52,0.17]
[1723128867739,1.56635601,159.7,159.53,6.4518]
[1723128867941,1.56635601,159.7,159.54,20.34]
[1723128868658,0.8354333,159.71,159.55,15.4219]
[1723128868863,0.8354333,159.71,159.56,20.34]
[1723128869644,0.8354333,159.71,159.57,6.7044]
[1723128869849,0.8354333,159.71,159.58,20.34]
[1723128871035,1.56585483,159.7,159.58,20.34]
[1723128871974,0.8354333,159.71,159.58,20.0]
[1723128872544,0.8354333,159.71,159.59,16.7174]
[1723128872745,0.8354333,159.71,159.6,20.0]
[1723128872963,0.8354333,159.71,159.61,6.4995]
[1723128873246,0.8354333,159.71,159.63,16.7174]
[1723128873457,0.8354333,159.71,159.64,20.34]
[1723128876970,1.56501019,159.81,159.65,6.2125]
[1723128877266,1.56501019,159.81,159.66,20.0]
[1723128877852,33.93,159.77,159.66,20.0]
[1723128878048,33.93,159.74,159.63,16.7174]
[1723128878267,66.73594488,159.73,159.63,16.7174]
[1723128878444,66.90594488,159.73,159.63,16.7174]
[1723128879075,65.34,159.73,159.63,16.7174]
[1723128879374,66.90583429,159.73,159.63,16.7174]
[1723128880454,65.34,159.73,159.61,6.2735]
[1723128880871,0.34,159.73,159.61,6.2735]
[1723128881063,6.1677,159.79,159.62,20.0]
[1723128881267,20.0,159.78,159.62,20.0]
[1723128881470,21.56562544,159.78,159.62,20.0]
[1723128882372,45.34,159.77,159.62,20.0]
[1723128882678,21.56554026,159.76,159.63,0.34]
[1723128882860,21.56553654,159.76,159.63,0.34]
[1723128883267,1.56553654,159.76,159.63,0.17]
[1723128883573,1.56553654,159.76,159.61,6.2735]
[1723128883772,41.48,159.74,159.61,6.2735]
[1723128884075,21.56619202,159.73,159.61,6.2735]
[1723128884267,45.17,159.72,159.61,6.2735]
[1723128884472,1.73602554,159.71,159.61,6.2735]
[1723128884674,45.17,159.72,159.61,6.2735]
[1723128885053,46.73589548,159.72,159.61,6.2735]
[1723128885257,45.0,159.72,159.61,6.2735]
[1723128885459,45.0,159.72,159.62,0.17]
[1723128885950,1.56571958,159.71,159.61,6.2735]
[1723128887496,0.34,159.7,159.61,6.2735]
[1723128887775,1.56613721,159.69,159.61,6.2735]
[1723128887959,0.17,159.7,159.61,6.2735]
[1723128888159,0.34,159.71,159.61,6.2735]
[1723128888354,1.5660065,159.7,159.61,6.2735]
[1723128888775,1.56570704,159.82,159.62,36.21846701]
[1723128888975,15.9512,159.84,159.63,6.4451]
[1723128889181,1.56522079,159.83,159.64,20.17]
[1723128889400,6.50878676,159.83,159.65,0.17]
[1723128889561,8.0739513,159.83,159.65,0.17]
[1723128889765,49.5539513,159.83,159.65,0.17]
[1723128890073,49.5539513,159.83,159.64,20.17]
[1723128890464,49.5539513,159.83,159.64,20.0]
[1723128890668,41.48,159.79,159.64,20.0]
[1723128890983,46.90569507,159.78,159.64,20.0]
[1723128891287,20.0,159.77,159.64,20.0]
[1723128891488,46.56535439,159.76,159.64,20.0]
[1723128892259,46.56566972,159.76,159.64,20.0]
[1723128892888,46.56566972,159.76,159.63,6.87174029]
[1723128893072,20.0,159.75,159.63,6.87174029]
[1723128893382,45.0,159.74,159.63,6.87174029]
[1723128893586,46.56584852,159.74,159.63,6.87174029]
[1723128894277,45.0,159.74,159.64,20.17]
[1723128894501,45.0,159.74,159.65,0.17]
[1723128894861,1.56548036,159.82,159.65,0.17]
[1723128895078,1.56548036,159.82,159.66,16.6265]
[1723128895276,1.56548036,159.82,159.67,20.34]
[1723128895481,1.56548036,159.82,159.67,20.0]
[1723128896187,1.56521225,159.81,159.68,0.17]
[1723128896390,1.56521225,159.81,159.68,0.34]
[1723128896895,46.56521225,159.81,159.68,0.34]
[1723128897465,0.17,159.8,159.68,0.34]
[1723128897905,1.73517391,159.8,159.67,20.0]
[1723128898094,0.17,159.79,159.67,20.0]
[1723128898293,0.17,159.8,159.67,20.0]
[1723128898595,1.56521465,159.79,159.67,20.0]
[1723128898774,0.34,159.78,159.67,20.0]
[1723128899178,1.56532238,159.8,159.67,20.0]
[1723128899179,1.56526486,159.79,159.67,20.0]
[1723128899380,0.34,159.8,159.67,20.0]
[1723128899580,1.7352162,159.78,159.67,20.0]
[1723128899879,0.17,159.77,159.67,20.0]
[1723128900075,0.17,159.77,159.66,16.6265]
[1723128900393,41.48,159.76,159.66,16.6265]
[1723128900595,45.34,159.75,159.66,16.6265]
[1723128900788,1.56560854,159.74,159.66,16.6265]
[1723128900994,45.0,159.75,159.66,16.6265]
[1723128901197,46.56538573,159.75,159.66,16.6265]
[1723128901804,80.49538573,159.75,159.66,16.6265]
[1723128902508,33.93,159.72,159.66,16.6265]
[1723128902695,46.73591693,159.71,159.66,16.6265]
[1723128903003,1.56586793,159.7,159.66,16.6265]
[1723128903303,1.56586793,159.7,159.64,0.41323672]
[1723128903809,1.56586793,159.7,159.62,16.2045]
[1723128903810,41.51,159.68,159.62,16.2045]
[1723128903987,46.5662417,159.67,159.59,6.4759]
[1723128904184,20.17,159.66,159.57,16.2045]
[1723128904404,46.73673322,159.65,159.58,0.41339209]
[1723128904599,45.17,159.65,159.58,0.41339209]
[1723128904782,45.0,159.65,159.58,0.41339209]
[1723128905792,1.56632804,159.64,159.58,20.41339209]
[1723128906106,45.0,159.65,159.58,20.41339209]
[1723128907289,1.73634413,159.64,159.58,0.41339209]
[1723128907491,21.90634413,159.64,159.58,0.41339209]
[1723128907691,45.0,159.63,159.58,0.41339209]
[1723128907890,0.17,159.62,159.58,0.41339209]
[1723128908113,1.73693654,159.62,159.58,0.41339209]
[1723128908307,0.17,159.61,159.58,0.41339209]
[1723128908612,1.56698064,159.61,159.54,6.7453]
[1723128908901,1.56683693,159.62,159.54,6.7453]
[1723128909310,1.56683693,159.62,159.55,20.0]
[1723128909516,45.0,159.63,159.55,20.0]
[1723128909898,43.07652747,159.68,159.55,20.0]
[1723128910092,47.9743,159.72,159.56,0.34]
[1723128910408,1.56613387,159.75,159.58,6.2191]
[1723128910709,6.4643,159.77,159.59,20.17]
[1723128911012,1.56571997,159.78,159.61,22.1289]
[1723128911309,1.56571997,159.78,159.62,20.34]
[1723128911497,1.56570544,159.77,159.63,0.41326261]
[1723128911904,1.56570544,159.77,159.64,0.34]
[1723128912208,1.56570544,159.77,159.65,0.41321084]
[1723128912407,41.51,159.8,159.65,0.41321084]
[1723128912644,41.51,159.84,159.68,16.2738]
[1723128912919,41.51,159.84,159.69,20.0]
[1723128913128,1.56516739,159.83,159.69,20.0]
[1723128913299,1.56541973,159.82,159.69,20.0]
[1723128914396,1.56503923,159.83,159.69,20.0]
[1723128914596,1.56503923,159.81,159.69,20.0]
[1723128915612,1.56507757,159.8,159.69,20.0]
[1723128916415,1.56516303,159.82,159.69,20.0]
[1723128917097,0.34,159.81,159.68,16.68693321]
[1723128917415,1.56548816,159.8,159.68,16.68693321]
[1723128917607,0.34,159.79,159.68,16.68693321]
[1723128917808,1.56527342,159.78,159.68,16.68693321]
[1723128918121,46.56527342,159.78,159.68,16.68693321]
[1723128918314,45.0,159.78,159.68,16.68693321]
[1723128918495,20.0,159.77,159.68,14.68693321]
[1723128918700,45.0,159.76,159.68,14.68693321]
[1723128919099,48.02297336,159.84,159.69,0.17]
[1723128919400,48.02297336,159.84,159.69,20.34]
[1723128919594,1.56483144,159.83,159.69,20.34]
[1723128920010,48.02297336,159.84,159.69,20.34]
[1723128920412,1.56475211,159.83,159.69,20.34]
[1723128920723,1.56479093,159.83,159.69,20.34]
[1723128920919,48.02297336,159.84,159.69,20.34]
[1723128921227,21.56473291,159.83,159.69,20.34]
[1723128922229,20.0,159.83,159.69,20.34]
[1723128922409,45.0,159.82,159.7,6.4113]
[1723128922609,20.0,159.81,159.71,20.34]
[1723128923103,1.56458144,159.8,159.72,15.9183]
[1723128923304,1.56476442,159.8,159.73,0.17]
[1723128923606,1.56480552,159.86,159.72,15.9183]
[1723128923808,33.89,159.83,159.73,0.17]
[1723128924003,20.0,159.82,159.73,0.17]
[1723128924413,20.0,159.82,159.73,0.34]
[1723128924905,0.8354333,159.87,159.75,16.1238]
[1723128925117,0.8354333,159.87,159.74,6.7613]
[1723128925118,0.8354333,159.87,159.77,22.8851]
[1723128925345,2.69706007,159.91,159.79,22.8851]
[1723128925638,12.34651967,159.97,159.8,20.34]
[1723128925817,12.34651967,159.97,159.82,15.6053]
[1723128926015,5.82581534,159.97,159.83,0.34]
[1723128926220,10.06830294,159.97,159.83,20.34]
[1723128926521,8.50501408,159.97,159.83,20.34]
[1723128927225,8.50501408,159.97,159.84,6.4112]
[1723128927425,8.50501408,159.97,159.85,20.34]
[1723128927618,8.50501408,159.97,159.86,16.1976]
[1723128927619,1.56286811,159.96,159.86,16.1976]
[1723128927828,8.50501408,159.97,159.87,20.34]
[1723128929320,8.50501408,159.97,159.88,6.6958]
[1723128929642,8.50501408,159.97,159.89,20.34]
[1723128929820,2.67919874,159.97,159.89,20.34]
[1723128930013,0.8354333,160.03,159.92,16.3611]
[1723128930337,0.8354333,160.03,159.93,20.34]
[1723128931904,0.8354333,160.03,159.92,16.3611]
[1723128932106,6.51410038,160.11,159.93,22.6547]
[1723128932327,6.6955,160.21,159.93,22.6547]
[1723128932328,41.34,160.16,159.95,6.2936]
[1723128932537,41.34,160.12,159.95,6.2936]
[1723128932709,1.56215019,160.11,159.95,6.2936]
[1723128932905,1.56228884,160.11,159.95,6.2936]
[1723128933123,41.34,160.08,159.95,6.2936]
[1723128933425,41.34,160.0,159.89,6.5848]
[1723128933607,1.56328076,159.99,159.89,6.5848]
[1723128933806,1.56336343,159.98,159.89,6.5848]
[1723128934226,21.56336343,159.98,159.89,6.5848]
[1723128934447,41.34,159.96,159.83,6.2777]
[1723128934618,21.90367765,159.95,159.84,16.2169]
[1723128934814,45.0,159.94,159.84,16.2169]
[1723128935024,1.5636799,159.93,159.84,16.2169]
[1723128935317,1.56366038,159.92,159.84,16.2169]
[1723128935523,1.56366038,159.92,159.83,6.2777]
[1723128935721,0.17,159.91,159.78,15.7085]
[1723128935915,1.56430319,159.9,159.78,15.7085]
[1723128936120,0.34,159.91,159.78,15.7085]
[1723128936121,1.73427779,159.89,159.78,15.7085]
[1723128936314,0.17,159.88,159.71,22.2136]
[1723128936536,1.56463308,159.87,159.71,22.2136]
[1723128936841,41.34,159.85,159.71,22.2136]
[1723128937019,65.17,159.84,159.71,22.2136]
[1723128937219,65.0,159.84,159.71,22.2136]
[1723128937435,1.73475293,159.83,159.71,22.2136]
[1723128937610,65.0,159.84,159.71,22.2136]
[1723128937814,1.73468846,159.83,159.71,22.2136]
[1723128938035,1.56483687,159.82,159.71,6.7034]
[1723128938238,41.68,159.81,159.68,0.41313321]
[1723128938437,41.34,159.77,159.68,0.41313321]
[1723128938754,66.90554625,159.76,159.68,0.41313321]
[1723128938916,65.34,159.76,159.68,0.41313321]
[1723128939119,65.0,159.76,159.68,0.41313321]
[1723128939316,45.0,159.76,159.68,0.41313321]
[1723128939720,1.56524351,159.75,159.68,0.41313321]
[1723128939931,1.56554581,159.86,159.68,0.41313321]
[1723128940130,41.34,159.9,159.68,20.41313321]
[1723128940325,41.34,159.9,159.69,20.0]
[1723128940822,1.56423105,159.89,159.69,20.0]
[1723128941023,41.34,159.86,159.7,0.34]
[1723128941228,41.34,159.82,159.68,0.41313321]
[1723128941439,42.90509643,159.82,159.68,0.41313321]
[1723128941735,20.0,159.81,159.68,0.41313321]
[1723128941937,65.0,159.81,159.68,0.41313321]
[1723128942452,41.34,159.78,159.68,0.41313321]
[1723128942735,66.56539289,159.77,159.68,0.41313321]
[1723128942915,0.34,159.76,159.68,0.41313321]
[1723128943336,1.73549839,159.76,159.68,0.41313321]
[1723128943540,0.17,159.75,159.68,0.41313321]
[1723128944043,42.90566649,159.74,159.68,0.41313321]
[1723128944243,65.34,159.73,159.63,30.8354333]
[1723128944447,1.56611224,159.72,159.63,30.8354333]
[1723128944824,0.34,159.71,159.63,30.8354333]
[1723128945041,1.56610058,159.7,159.63,30.8354333]
[1723128945257,0.17,159.71,159.63,30.8354333]
[1723128945423,0.34,159.72,159.63,30.8354333]
[1723128945622,1.90594979,159.72,159.63,30.8354333]
[1723128945924,0.17,159.72,159.63,30.8354333]
[1723128946125,1.56583336,159.72,159.63,30.8354333]
[1723128946321,66.7360887,159.73,159.63,30.8354333]
[1723128946540,65.17,159.73,159.63,30.8354333]
[1723128946935,66.73581452,159.73,159.63,30.8354333]
[1723128947132,45.17,159.73,159.63,30.8354333]
[1723128947330,22.86,159.84,159.63,30.8354333]
[1723128947546,41.34,159.78,159.64,0.34]
[1723128947843,41.34,159.78,159.64,20.34]
[1723128948144,41.34,159.78,159.63,30.8354333]
[1723128948145,1.56539248,159.77,159.63,30.8354333]
[1723128948345,47.85216718,159.78,159.63,30.8354333]
[1723128948731,47.85216718,159.78,159.64,20.17]
[1723128949028,41.34,159.78,159.64,20.17]
[1723128949231,64.2,159.84,159.64,20.17]
[1723128949535,70.71118666,159.84,159.64,20.17]
[1723128949736,1.56504929,159.83,159.65,0.17]
[1723128950039,70.71118666,159.84,159.66,23.606]
[1723128950040,47.85118666,159.84,159.66,23.606]
[1723128950240,47.85118666,159.84,159.67,20.34]
[1723128950634,47.85118666,159.84,159.68,0.30762773]
[1723128950938,47.85118666,159.84,159.69,0.34]
[1723128951138,1.56489424,159.83,159.7,0.28017838]
[1723128951445,41.34,159.84,159.71,0.34]
[1723128951658,41.34,159.84,159.72,0.27372686]
[1723128952247,1.56482388,159.83,159.72,0.27372686]
[1723128952548,1.56493061,159.83,159.72,0.27372686]
[1723128952746,1.56490369,159.82,159.72,0.27372686]
[1723128952948,41.34,159.78,159.72,0.27372686]
[1723128953147,66.56563189,159.77,159.67,0.23633557]
[1723128953353,1.73559345,159.76,159.67,0.23633557]
[1723128954138,0.17,159.76,159.66,6.7086]
[1723128954944,66.56547617,159.77,159.66,6.7086]
[1723128955152,1.56545688,159.76,159.66,6.7086]
[1723128955460,0.34,159.75,159.66,6.7086]
[1723128955753,0.34,159.75,159.63,30.8354333]
[1723128955754,1.56574826,159.74,159.63,30.8354333]
[1723128955936,0.34,159.73,159.63,30.8354333]
[1723128956252,1.56596831,159.72,159.63,30.8354333]
[1723128956554,0.17,159.71,159.63,30.8354333]
[1723128956733,0.34,159.71,159.63,30.8354333]
[1723128957143,65.0,159.73,159.63,30.8354333]
[1723128957535,45.0,159.73,159.63,30.8354333]
[1723128957843,45.0,159.73,159.64,0.2287886]
[1723128958265,45.0,159.73,159.64,20.2287886]
[1723128958456,45.0,159.73,159.65,0.20992313]
[1723128958637,1.56547052,159.79,159.66,0.17]
[1723128958838,1.56547052,159.79,159.67,0.20581284]
[1723128959945,41.34,159.74,159.67,0.20581284]
[1723128960139,46.56614469,159.73,159.63,30.8354333]
[1723128960356,0.17,159.72,159.63,30.8354333]
[1723128960560,1.73609504,159.72,159.63,30.8354333]
[1723128960759,0.17,159.71,159.63,30.8354333]
[1723128960972,1.56603784,159.7,159.63,30.8354333]
[1723128961266,0.17,159.69,159.63,30.8354333]
[1723128961482,0.34,159.69,159.63,30.8354333]
[1723128961843,41.34,159.66,159.63,30.8354333]
[1723128962042,45.0,159.65,159.63,30.8354333]
[1723128962451,22.5213,159.78,159.63,30.8354333]
[1723128962646,1.56571408,159.77,159.63,30.8354333]
[1723128962870,1.56570476,159.76,159.63,30.8354333]
[1723128963586,47.7188,159.78,159.64,0.17]
[1723128963876,1.56563992,159.77,159.63,30.8354333]
[1723128964084,55.79182538,159.78,159.64,0.17]
[1723128964374,42.90565711,159.78,159.65,6.5701]
[1723128964573,41.34,159.74,159.65,6.5701]
[1723128964741,1.56594922,159.73,159.65,6.5701]
[1723128965372,0.34,159.72,159.65,6.5701]
[1723128965596,65.0,159.73,159.65,6.5701]
[1723128966279,66.56578155,159.73,159.65,6.5701]
[1723128966573,41.34,159.74,159.65,6.5701]
[1723128966787,1.5656299,159.73,159.65,6.5701]
[1723128967280,1.5656299,159.73,159.64,0.19245522]
[1723128967483,21.5656299,159.73,159.64,0.19245522]
[1723128967856,41.34,159.7,159.64,0.19245522]
[1723128968057,0.17,159.69,159.64,0.19245522]
[1723128968277,45.34,159.69,159.64,0.19245522]
[1723128969580,1.5662399,159.68,159.64,0.19245522]
[1723128969784,41.34,159.66,159.64,0.19245522]
[1723128970086,46.73643128,159.65,159.63,30.8354333]
[1723128970381,0.17,159.64,159.55,6.2639]
[1723128970592,1.73699937,159.64,159.55,6.2639]
[1723128970893,41.34,159.62,159.55,6.2639]
[1723128971052,45.34,159.61,159.53,15.4353]
[1723128971257,1.56704087,159.6,159.51,6.7791]
[1723128971485,0.34,159.59,159.51,6.7791]
[1723128971659,42.90741616,159.58,159.48,16.7055]
[1723128971867,45.0,159.57,159.48,16.7055]
[1723128972079,45.0,159.57,159.49,0.04887999]
[1723128973267,1.56728473,159.56,159.49,0.04887999]
[1723128973456,45.0,159.57,159.49,0.04887999]
[1723128974186,2.20667514,159.61,159.49,0.04887999]
[1723128974398,43.07696295,159.62,159.49,0.04887999]
[1723128974681,0.17,159.61,159.49,0.04887999]
[1723128974896,1.73699931,159.61,159.49,0.04887999]
[1723128975268,46.73699931,159.61,159.49,0.04887999]
[1723128975465,0.17,159.6,159.49,0.04887999]
[1723128975762,33.99,159.59,159.48,16.7055]
[1723128975988,33.99,159.62,159.48,16.7055]
[1723128976188,33.99,159.62,159.49,20.0]
[1723128976723,33.99,159.62,159.5,0.34]
[1723128977280,5.99521414,159.66,159.51,6.2233]
[1723128977460,5.99521414,159.66,159.53,16.0473]
[1723128977657,5.99521414,159.66,159.54,20.34]
[1723128978661,5.99521414,159.66,159.55,6.715]
[1723128978968,33.99,159.76,159.57,16.5689]
[1723128979169,33.99,159.76,159.58,20.3767989]
[1723128979364,33.99,159.68,159.59,0.03679659]
[1723128979573,1.56614415,159.67,159.59,0.03679659]
[1723128980270,1.56614415,159.67,159.56,0.03680351]
[1723128980271,46.56614415,159.67,159.56,0.03680351]
[1723128980465,41.51,159.63,159.56,0.03680351]
[1723128980785,45.0,159.62,159.51,15.78630351]
[1723128981083,46.56697445,159.62,159.51,15.78630351]
[1723128981589,0.34,159.61,159.51,15.78630351]
[1723128981887,1.56704823,159.6,159.51,15.78630351]
[1723128982063,0.34,159.59,159.51,15.78630351]
[1723128982384,1.56720415,159.58,159.5,6.794]
[1723128982689,45.0,159.62,159.5,6.794]
[1723128982897,1.90705505,159.61,159.5,6.794]
[1723128983180,1.56706366,159.6,159.5,6.794]
[1723128983395,1.73691721,159.61,159.5,6.794]
[1723128983569,45.0,159.62,159.5,6.794]
[1723128983765,1.56723106,159.67,159.5,6.794]
[1723128983766,2.2159701,159.63,159.5,6.794]
[1723128983967,41.51,159.68,159.51,20.17]
[1723128984466,1.56638199,159.67,159.51,20.17]
[1723128984871,1.56638199,159.67,159.52,0.17]
[1723128985370,0.34,159.66,159.52,0.17]
[1723128985572,1.56646747,159.65,159.52,0.17]
[1723128985967,43.77971388,159.68,159.52,0.17]
[1723128985968,2.26971388,159.68,159.52,0.17]
[1723128986169,1.56656654,159.71,159.52,0.17]
[1723128986788,41.51,159.72,159.52,45.17]
[1723128986789,43.07611032,159.72,159.52,45.17]
[1723128986973,1.56605114,159.75,159.53,20.17]
[1723128987173,1.56605114,159.75,159.54,0.17]
[1723128988292,3.82303227,159.75,159.53,20.0]
[1723128988491,41.51,159.7,159.52,2.20107303]
[1723128988707,41.51,159.7,159.5,6.794]
[1723128988708,1.56647774,159.69,159.5,6.794]
[1723128988871,41.51,159.66,159.5,6.794]
[1723128989369,45.0,159.65,159.5,6.794]
[1723128990491,45.0,159.65,159.51,20.34]
[1723128991905,41.51,159.76,159.54,6.8282]
[1723128992075,41.51,159.76,159.55,45.17]
[1723128992275,41.51,159.76,159.57,23.0534]
[1723128992475,41.51,159.76,159.58,20.34]
[1723128993100,1.56565339,159.75,159.58,20.34]
[1723128993403,41.51,159.76,159.58,20.34]
[1723128993588,1.56592696,159.75,159.58,20.34]
[1723128993787,43.07571533,159.76,159.58,20.34]
[1723128994299,0.17,159.75,159.58,20.34]
[1723128994481,0.17,159.75,159.58,20.17]
[1723128995474,45.34,159.75,159.58,20.17]
[1723128995680,41.51,159.76,159.6,6.7035]
[1723128995981,41.51,159.8,159.63,6.2281]
[1723128996195,47.9548,159.84,159.64,20.34]
[1723128996475,1.56518091,159.83,159.64,20.34]
[1723128996677,41.51,159.79,159.64,20.34]
[1723128996981,1.56565035,159.78,159.64,20.17]
[1723128997380,41.51,159.79,159.65,0.17]
[1723128997609,6.50972682,159.83,159.65,0.17]
[1723128997905,1.56504708,159.82,159.65,0.17]
[1723128998275,1.5650877,159.82,159.65,0.17]
[1723128999304,0.17,159.81,159.65,0.17]
[1723128999510,1.56529439,159.8,159.65,0.17]
[1723128999699,1.90529503,159.79,159.65,0.17]
[1723128999878,0.17,159.78,159.64,20.17]
[1723129000079,1.56551247,159.77,159.64,20.0]
[1723129000282,0.17,159.78,159.65,0.17]
[1723129000583,1.56529591,159.77,159.65,0.17]
[1723129000781,0.17,159.76,159.64,20.0]
[1723129001085,1.9056603,159.76,159.64,20.0]
[1723129001287,18.85,159.74,159.63,6.2281]
[1723129001487,41.68,159.75,159.63,6.2281]
[1723129001488,41.51,159.71,159.63,6.2281]
[1723129001694,1.90618426,159.7,159.63,6.2281]
[1723129001888,46.90618426,159.7,159.63,6.2281]
[1723129002081,45.34,159.7,159.63,6.2281]
[1723129002485,1.56607621,159.69,159.63,6.2281]
[1723129002892,46.56604338,159.7,159.63,6.2281]
[1723129003095,45.0,159.7,159.63,6.2281]
[1723129003391,41.51,159.75,159.64,0.17]
[1723129003598,43.07551975,159.75,159.63,6.2281]
[1723129003810,41.51,159.75,159.64,0.17]
[1723129003979,1.56560732,159.77,159.64,0.17]
[1723129004184,1.56560732,159.77,159.64,20.34]
[1723129005507,6.50972682,159.83,159.64,20.34]
[1723129005709,43.07498049,159.84,159.66,6.508]
[1723129006010,6.7525,159.88,159.69,6.508]
[1723129006011,41.51,159.88,159.69,6.508]
[1723129006195,1.5646016,159.87,159.7,20.34]
[1723129006394,48.2625,159.92,159.7,20.34]
[1723129006723,6.50948127,159.89,159.7,20.34]
[1723129006898,1.5646326,159.88,159.7,20.34]
[1723129007508,1.5646326,159.88,159.7,20.0]
[1723129007794,41.51,159.84,159.7,20.0]
[1723129008220,45.34,159.83,159.7,20.0]
[1723129008503,46.90482508,159.83,159.7,20.0]
[1723129009592,46.90482508,159.83,159.71,0.17]
[1723129009987,46.90482508,159.83,159.7,20.0]
[1723129010309,46.90482508,159.83,159.69,6.678]
[1723129010310,41.51,159.8,159.69,6.508]
[1723129010499,46.90536999,159.79,159.69,6.508]
[1723129012615,41.51,159.8,159.69,6.508]
[1723129012788,1.56536904,159.83,159.69,6.508]
[1723129012789,1.5651605,159.83,159.69,6.508]
[1723129012989,1.56509873,159.82,159.7,20.0]
[1723129013212,1.5650791,159.83,159.7,20.0]
[1723129013709,41.51,159.84,159.7,20.0]
[1723129013916,1.56499991,159.9,159.71,0.34]
[1723129013917,41.51,159.88,159.71,0.34]
[1723129014245,1.56469261,159.87,159.71,0.34]
[1723129014387,41.51,159.88,159.72,23.5818]
[1723129014597,1.564631,159.88,159.73,20.34]
[1723129014801,2.27157504,159.89,159.73,20.34]
[1723129015005,8.07597266,159.91,159.75,16.9572]
[1723129015209,8.07597266,159.91,159.76,20.34]
[1723129015412,1.56442954,159.91,159.76,20.34]
[1723129015612,41.51,159.96,159.79,6.6246]